Workbook

Sheet silový čtyřboj 2022 - kraj
A1: SILOVÝ ČTYŘBOJ ZDATNOSTI DÍVEK
B3: Pořadatel: | E3: SOŠ a SOU Vlašim, Zámek 1 | J3: Hlavní partneři závodu:
B4: Místo konání: | E4: sokolovna, Vlašim
B5: Datum: | E5: úterý, 22. 3. 2022
B6: Silový čtyřboj - dívky - krajské kolo
B7: start. č. | C7: příjmení, jméno | D7: ročník nar. | E7: škola | F7: Šplh | H7: Trojskok | J7: Hod | L7: Sedy-lehy | N7: Body jednot. | O7: Body družstva | P7: Pořadí družstva | Q7: Pořadí jednotlivci
F8: výkon | G8: body | H8: výkon | I8: body | J8: výkon | K8: body | L8: výkon | M8: body
B9: 1 | C9: Jarošová Kristýna | D9: 2005 | E9: Gymnázium Vlašim 1 | F9: 4.9 | G9: =IF(F9>10.1,0,(IF(F9=0,0,(10.1-F9)*10))) -> 52 | H9: 620 | I9: =IF(H9<=425,0,IF(H9=425,1,(H9-425)/5)) -> 39 | J9: 840 | K9: =IF(J9>500,(J9-500)/10*1,0) -> 34 | L9: 51 | M9: =L9*1 -> 51 | N9: =SUM(M9,K9,I9,G9) -> 176 | O9: =SUM(N9:N12)-MIN(N9:N12) -> 549 | P9: 3 | Q9: =RANK(N9,$N$9:$N$48,0) -> 11
B10: 2 | C10: Průšová Josefína | D10: 2006 | E10: Gymnázium Vlašim 1 | F10: 3.2 | G10: 69 | H10: 640 | I10: =IF(H10<=425,0,IF(H10=425,1,(H10-425)/5)) -> 43 | J10: 850 | K10: 35 | L10: 38 | M10: 38 | N10: 185 | Q10: =RANK(N10,$N$9:$N$48,0) -> 7
B11: 3 | C11: Zákostelská Andrea | D11: 2005 | E11: Gymnázium Vlašim 1 | F11: 4 | G11: 61 | H11: 650 | I11: 45 | J11: 920 | K11: 42 | L11: 40 | M11: 40 | N11: 188 | Q11: =RANK(N11,$N$9:$N$48,0) -> 4
B12: 4 | C12: Horálková Zuzana | D12: 2005 | E12: Gymnázium Vlašim 1 | F12: 9.8 | G12: 3 | H12: 610 | I12: 37 | J12: 820 | K12: 32 | L12: 41 | M12: 41 | N12: 113 | Q12: =RANK(N12,$N$9:$N$48,0) -> 29
G13: 0 | I13: 0 | K13: 0 | M13: 0 | N13: 0 | Q13: =RANK(N13,$N$9:$N$45,0) -> 36
B14: 5 | C14: Kohoutová Barbora | D14: 2006 | E14: Gymnázium Vlašim 2 | F14: 6.3 | G14: 38 | H14: 660 | I14: 47 | J14: 680 | K14: 18 | L14: 43 | M14: 43 | N14: 146 | O14: =SUM(N14:N17)-MIN(N14:N17) -> 438 | P14: 7 | Q14: =RANK(N14,$N$9:$N$48,0) -> 22
B15: 6 | C15: Sátrová Klára | D15: 2005 | E15: Gymnázium Vlašim 2 | F15: 6.3 | G15: =IF(F15>10.1,0,(IF(F15=0,0,(10.1-F15)*10))) -> 38 | H15: 570 | I15: =IF(H15<=425,0,IF(H15=425,1,(H15-425)/5)) -> 29 | J15: 750 | K15: =IF(J15>500,(J15-500)/10*1,0) -> 25 | L15: 38 | M15: =L15*1 -> 38 | N15: =SUM(M15,K15,I15,G15) -> 130 | Q15: 27
B16: 7 | C16: Jirásková Adriana | D16: 2005 | E16: Gymnázium Vlašim 2 | F16: 4.9 | G16: 52 | H16: 620 | I16: 39 | J16: 800 | K16: 30 | L16: 41 | M16: 41 | N16: 162 | Q16: 18
B17: 8 | C17: Sátrová Tereza | D17: 2006 | E17: Gymnázium Vlašim 2 | F17: 10.2 | G17: 0 | H17: 550 | I17: 25 | J17: 820 | K17: 32 | L17: 39 | M17: 39 | N17: 96 | Q17: 33
B18: 9 | C18: Fialová Marika | D18: 2006 | E18: Gymnázium Vlašim 3 | F18: 6 | G18: =IF(F18>10.1,0,(IF(F18=0,0,(10.1-F18)*10))) -> 41 | H18: 610 | I18: =IF(H18<=425,0,IF(H18=425,1,(H18-425)/5)) -> 37 | J18: 700 | K18: =IF(J18>500,(J18-500)/10*1,0) -> 20 | L18: 45 | M18: =L18*1 -> 45 | N18: =SUM(M18,K18,I18,G18) -> 143 | O18: =SUM(N18:N20) -> 331 | P18: 9 | Q18: 25
B19: 10 | C19: Chvalkovská Karla | D19: 2005 | E19: Gymnázium Vlašim 3 | F19: 4.6 | G19: 55 | H19: 0 | I19: 0 | J19: 710 | K19: 21 | L19: 33 | M19: 33 | N19: 109 | Q19: 30
B20: 11 | C20: Vrňáková Jana | D20: 2005 | E20: Gymnázium Vlašim 3 | F20: 12.5 | G20: 0 | H20: 560 | I20: 27 | J20: 600 | K20: 10 | L20: 42 | M20: 42 | N20: 79 | Q20: 37
B21: 12 | C21: Švestková Nikola | D21: 2006 | E21: Obchodní akademie Vlašim | F21: 5.6 | G21: 45 | H21: 630 | I21: 41 | J21: 820 | K21: 32 | L21: 54 | M21: 54 | N21: 172 | O21: =SUM(N21:N23) -> 483 | P21: 6 | Q21: 13
B22: 13 | C22: Dosoudilová Michaela | D22: 2006 | E22: Obchodní akademie Vlašim | F22: 4.1 | G22: 60 | H22: 670 | I22: 49 | J22: 810 | K22: 31 | L22: 38 | M22: 38 | N22: 178 | Q22: 10
B23: 14 | C23: Doubková Tereza | D23: 2005 | E23: Obchodní akademie Vlašim | F23: 9.2 | G23: 9 | H23: 650 | I23: 45 | J23: 870 | K23: 37 | L23: 42 | M23: 42 | N23: 133 | Q23: 26
B24: 15 | C24: Minářová Lenka | D24: 2003 | E24: Gymnázium Benešov 1 | F24: 3.2 | G24: 69 | H24: 640 | I24: 43 | J24: 780 | K24: 28 | L24: 35 | M24: =L24*1 -> 35 | N24: 175 | O24: =SUM(N24:N27)-MIN(N24:N27) -> 539 | P24: 4 | Q24: 12
B25: 16 | C25: Peterková Eliška | D25: 2004 | E25: Gymnázium Benešov 1 | F25: 5.2 | G25: 49 | H25: 640 | I25: 43 | J25: 830 | K25: 33 | L25: 42 | M25: 42 | N25: 167 | Q25: 16
B26: 17 | C26: Ludvíčková Petra | D26: 2005 | E26: Gymnázium Benešov 1 | F26: 4 | G26: 61 | H26: 640 | I26: 43 | J26: 910 | K26: 41 | L26: 52 | M26: =L26*1 -> 52 | N26: 197 | Q26: 3
B27: 18 | C27: Silvey Alexandra | D27: 2005 | E27: Gymnázium Benešov 1 | F27: 5 | G27: 51 | H27: 620 | I27: 39 | J27: 790 | K27: 29 | L27: 32 | M27: 32 | N27: 151 | Q27: 21
B28: 19 | C28: Kučerová Aneta | D28: 2004 | E28: Gymnázium Benešov 2 | F28: 6.9 | G28: =IF(F28>10.1,0,(IF(F28=0,0,(10.1-F28)*10))) -> 32 | H28: 640 | I28: =IF(H28<=425,0,IF(H28=425,1,(H28-425)/5)) -> 43 | J28: 810 | K28: =IF(J28>500,(J28-500)/10*1,0) -> 31 | L28: 54 | M28: =L28*1 -> 54 | N28: =SUM(M28,K28,I28,G28) -> 160 | O28: =SUM(N28:N30) -> 519 | P28: 5 | Q28: 19
B29: 20 | C29: Havránková Lucie | D29: 2004 | E29: Gymnázium Benešov 2 | F29: 3.4 | G29: 67 | H29: 600 | I29: 35 | J29: 810 | K29: 31 | L29: 54 | M29: 54 | N29: 187 | Q29: 6
B30: 22 | C30: Křupková Ilona | D30: 2004 | E30: Gymnázium Benešov 2 | F30: 5.7 | G30: 44 | H30: 640 | I30: 43 | J30: 830 | K30: 33 | L30: 52 | M30: 52 | N30: 172 | Q30: 13
B31: 23 | C31: Mašková Kateřina | D31: 2003 | E31: Gymnázium Jiřího z Poděbrad, Poděbrady | F31: 4.1 | G31: 60 | H31: 670 | I31: 49 | J31: 920 | K31: 42 | L31: 57 | M31: 57 | N31: 208 | O31: =SUM(N31:N34)-MIN(N31:N34) -> 576 | P31: 2 | Q31: 2
B32: 24 | C32: Škochová Ema | D32: 2003 | E32: Gymnázium Jiřího z Poděbrad, Poděbrady | F32: 5.6 | G32: 45 | H32: 620 | I32: 39 | J32: 760 | K32: 26 | L32: 49 | M32: 49 | N32: 159 | Q32: 20
B33: 25 | C33: Heryánová Lia | D33: 2004 | E33: Gymnázium Jiřího z Poděbrad, Poděbrady | F33: 4.8 | G33: 53 | H33: 630 | I33: 41 | J33: 910 | K33: 41 | L33: 48 | M33: 48 | N33: 183 | Q33: 9
B34: 26 | C34: Urbánková Natálie | D34: 2003 | E34: Gymnázium Jiřího z Poděbrad, Poděbrady | F34: 3.2 | G34: 69 | H34: 630 | I34: 41 | J34: 830 | K34: 33 | L34: 42 | M34: 42 | N34: 185 | Q34: 7
B35: 33 | C35: Kloučková Barbora | D35: 2005 | E35: Sportovní gymnázium Kladno 1 | F35: 5.2 | G35: =IF(F35>10.1,0,(IF(F35=0,0,(10.1-F35)*10))) -> 49 | H35: 640 | I35: =IF(H35<=425,0,IF(H35=425,1,(H35-425)/5)) -> 43 | J35: 930 | K35: =IF(J35>500,(J35-500)/10*1,0) -> 43 | L35: 53 | M35: =L35*1 -> 53 | N35: =SUM(M35,K35,I35,G35) -> 188 | O35: =SUM(N35:N38)-MIN(N35:N38) -> 594 | P35: 1 | Q35: 4
B36: 28 | C36: Holušová Kateřina | D36: 2003 | E36: Sportovní gymnázium Kladno 1 | F36: 5 | G36: 51 | H36: 600 | I36: 35 | J36: 850 | K36: 35 | L36: 50 | M36: 50 | N36: 171 | Q36: 15
B37: 29 | C37: Dvořáková Kristýna | D37: 2003 | E37: Sportovní gymnázium Kladno 1 | F37: 4.7 | G37: 54 | H37: 750 | I37: 65 | J37: 1170 | K37: 67 | L37: 49 | M37: 49 | N37: 235 | Q37: 1
B38: 30 | C38: Polanská Kateřina | D38: 2005 | E38: Sportovní gymnázium Kladno 1 | F38: 5.2 | G38: 49 | H38: 640 | I38: 43 | J38: 700 | K38: 20 | L38: 34 | M38: 34 | N38: 146 | Q38: 22
B39: 31 | C39: Sipeticová Sofie | D39: 2005 | E39: Sportovní gymnázium Kladno 2 | F39: 13.1 | G39: =IF(F39>10.1,0,(IF(F39=0,0,(10.1-F39)*10))) -> 0 | H39: 590 | I39: =IF(H39<=425,0,IF(H39=425,1,(H39-425)/5)) -> 33 | J39: 790 | K39: =IF(J39>500,(J39-500)/10*1,0) -> 29 | L39: 46 | M39: =L39*1 -> 46 | N39: =SUM(M39,K39,I39,G39) -> 108 | O39: =SUM(N39:N41) -> 417 | P39: 8 | Q39: 31
B40: 32 | C40: Káňová Barbova | D40: 2005 | E40: Sportovní gymnázium Kladno 2 | F40: 4.1 | G40: 60 | H40: 630 | I40: 41 | J40: 630 | K40: 13 | L40: 49 | M40: 49 | N40: 163 | Q40: 17
B41: 27 | C41: Třísková Šárka | D41: 2003 | E41: Sportovní gymnázium Kladno 2 | F41: 8 | G41: 21 | H41: 610 | I41: 37 | J41: 850 | K41: 35 | L41: 53 | M41: 53 | N41: 146 | Q41: 22
G42: 0 | I42: 0 | K42: 0 | M42: 0 | N42: 0 | Q42: =RANK(N42,$N$9:$N$45,0) -> 36
B43: 34 | C43: Karbová Petra | D43: 2001 | E43: SOŠ a SOU Vlašim, Zámek 1 #1 | F43: 7.1 | G43: 30 | H43: 520 | I43: 19 | J43: 570 | K43: 7 | L43: 40 | M43: 40 | N43: 96 | O43: =SUM(N43:N45) -> 311 | P43: 10 | Q43: =RANK(N43,$N$9:$N$48,0) -> 33
B44: 35 | C44: Šaňková Adéla | D44: 2003 | E44: SOŠ a SOU Vlašim, Zámek 1 #1 | F44: 7.2 | G44: 29 | H44: 590 | I44: 33 | J44: 730 | K44: 23 | L44: 35 | M44: 35 | N44: 120 | Q44: 28
B45: 36 | C45: Černovská Jana | D45: 2005 | E45: SOŠ a SOU Vlašim, Zámek 1 #1 | F45: 0 | G45: 0 | H45: 610 | I45: 37 | J45: 930 | K45: 43 | L45: 15 | M45: 15 | N45: 95 | Q45: 35
B46: 37 | C46: Pavlová Viktorie | D46: 2003 | E46: SOŠ a SOU Vlašim, Zámek 1 #2 | F46: 16.9 | G46: =IF(F46>10.1,0,(IF(F46=0,0,(10.1-F46)*10))) -> 0 | H46: 540 | I46: =IF(H46<=425,0,IF(H46=425,1,(H46-425)/5)) -> 23 | J46: 850 | K46: =IF(J46>500,(J46-500)/10*1,0) -> 35 | L46: 23 | M46: =L46*1 -> 23 | N46: =SUM(M46,K46,I46,G46) -> 81 | O46: =SUM(N46:N48) -> 180 | P46: 11 | Q46: 36
B47: 39 | C47: Konáriková Aneta | D47: 2005 | E47: SOŠ a SOU Vlašim, Zámek 1 #2 | F47: 0 | G47: 0 | H47: 550 | I47: 25 | J47: 940 | K47: 44 | L47: 30 | M47: 30 | N47: 99 | Q47: 32
B48: 40 | C48: Chmelová Vanessa | D48: 2004 | E48: SOŠ a SOU Vlašim, Zámek 1 #2 | F48: 0 | G48: 0 | H48: 0 | I48: 0 | J48: 0 | K48: 0 | M48: 0 | N48: 0 | Q48: 38
